fUST/lending_fUST_20250630
["ID","MTS","AMOUNT","RATE_DAILY","PERIOD"]
[368668670,1751286645616,-151.0,0.00020145,2]
[368668671,1751286645625,-151.0,0.00020145,2]
[368668672,1751286645635,-151.0,0.00020145,2]
[368668673,1751286645644,-151.0,0.00020145,2]
[368668674,1751286645654,-500.0,0.00020145,2]
[368668675,1751286645663,-151.0,0.00020145,2]
[368668676,1751286645673,-500.0,0.00020145,2]
[368668677,1751286645682,-151.0,0.00020145,2]
[368668678,1751286645692,-460.0,0.00020152,2]
[368668679,1751286645702,-460.0,0.00020152,2]
[368668680,1751286645712,-9980.04216112,0.00020154,2]
[368668681,1751286645722,-239.64445,0.00020154,2]
[368668682,1751286645731,-151.0,0.00020154,2]
[368668683,1751286645740,-460.0,0.00020154,2]
[368668684,1751286645750,-460.0,0.00020154,2]
[368668685,1751286645759,-460.0,0.00020154,2]
[368668686,1751286645768,-1367.79,0.00020154,2]
[368668687,1751286645777,-460.0,0.00020154,2]
[368668688,1751286645787,-460.0,0.00020154,2]
[368668689,1751286645799,-1557.53,0.00020154,2]
[368668690,1751286645814,-460.0,0.00020154,2]
[368668691,1751286645827,-460.0,0.00020154,2]
[368668692,1751286645841,-461.76858305,0.00020154,2]
[368668693,1751286645853,-460.0,0.00020154,2]
[368668694,1751286645864,-460.0,0.00020154,2]
[368668695,1751286645878,-151.0,0.00020155,2]
[368668696,1751286645890,-151.0,0.00020155,2]
[368668697,1751286645903,-151.0,0.00020155,2]
[368668698,1751286645916,-234.88507,0.00020155,2]
[368668699,1751286645929,-282.68559468,0.00020155,2]
[368668700,1751286645942,-460.0,0.00020155,2]
[368668701,1751286645956,-460.0,0.00020155,2]
[368668702,1751286645970,-702.26,0.00020155,2]
[368668703,1751286645984,-610.59,0.00020155,2]
[368668704,1751286645995,-1839.25,0.00020155,2]
[368668705,1751286646008,-460.0,0.00020155,2]
[368668706,1751286646021,-609.73,0.00020155,2]
[368668707,1751286646033,-420.0,0.0002016,2]
[368668708,1751286646044,-151.0,0.00020172,2]
[368668709,1751286646057,-151.0,0.00020172,2]
[368668710,1751286646070,-151.0,0.00020172,2]
[368668711,1751286646081,-500.0,0.00020172,2]
[368668712,1751286646094,-151.0,0.00020172,2]
[368668713,1751286646104,-500.0,0.00020172,2]
[368668714,1751286646115,-193.9658982,0.00020172,2]
[368668715,1751286646127,-500.0,0.00020172,2]
[368668716,1751286646139,-151.0,0.00020172,2]
[368668717,1751286646151,-500.0,0.00020172,2]
[368668718,1751286646162,-155.88843985,0.00020172,2]
[368668719,1751286646175,-151.0,0.00020172,2]
[368668720,1751286646187,-151.0,0.00020172,2]
[368668721,1751286646198,-151.0,0.00020172,2]
[368668722,1751286646211,-151.0,0.00020172,2]
[368668723,1751286646224,-151.0,0.00020172,2]
[368668724,1751286646237,-152.27517289,0.00020172,2]
[368668725,1751286646250,-151.0,0.00020172,2]
[368668726,1751286646260,-245.0,0.00020172,2]
[368668727,1751286646270,-500.0,0.00020172,2]
[368668728,1751286646281,-500.0,0.00020172,2]
[368668729,1751286646291,-237.94600676,0.00020172,2]
[368668730,1751286646306,-245.950111,0.00020187,2]
[368668731,1751286646318,-151.0,0.000202,2]
[368668732,1751286646331,-151.0,0.000202,2]
[368668733,1751286646343,-484.49582104,0.000202,2]
[368668734,1751286646355,-198.50873442,0.000202,2]
[368668735,1751286646365,-152.67121945,0.000202,2]
[368668736,1751286646377,-454.8883299,0.000202,2]
[368668737,1751286646387,-359.29819206,0.000202,2]
[368668739,1751286646400,-151.0,0.000202,2]
[368668741,1751286646412,-151.0,0.000202,2]
[368668742,1751286646423,-453.0,0.000202,2]
[368668743,1751286646433,-5000.0,0.00020206,2]
[368668744,1751286646444,-151.0,0.00020227,2]
[368668745,1751286646455,-151.0,0.00020227,2]
[368668746,1751286646466,-4771.18398847,0.00020245,2]
[368668747,1751286646476,-151.0,0.00020255,2]
[368668748,1751286646487,-151.0,0.00020255,2]
[368668749,1751286646498,-1200.0,0.00020259,2]
[368668750,1751286646509,-245.0,0.00020282,2]
[368668751,1751286646521,-150.0,0.000203,30]
[368668752,1751286646532,-585.25589383,0.00020306,2]
[368668753,1751286646543,-580.114,0.00020327,2]
[368668754,1751286646555,-203.7589197,0.00020329,2]
[368668755,1751286646566,-153.0,0.00020356,2]
[368668756,1751286646577,-151.0,0.00020361,2]
[368668757,1751286646587,-151.0,0.000204,4]
[368668758,1751286646598,-460.0,0.00020409,2]
[368668759,1751286646609,-1010.22,0.00020409,2]
[368668760,1751286646620,-869.08,0.00020409,2]
[368668761,1751286646631,-1038.0,0.00020409,2]
[368668762,1751286646642,-1004.21,0.00020409,2]
[368668763,1751286646653,-467.89,0.00020409,2]
[368668764,1751286646664,-1242.93,0.00020409,2]
[368668765,1751286646675,-491.71,0.00020409,2]
[368668766,1751286646686,-151.0,0.00020409,2]
[368668767,1751286646697,-151.0,0.00020409,2]
[368668768,1751286646707,-466.69,0.00020409,2]
[368668769,1751286646719,-524.36,0.00020409,2]
[368668770,1751286646729,-460.0,0.00020409,2]
[368668771,1751286646740,-151.0,0.00020417,2]
[368668772,1751286646752,-4771.18398847,0.00020417,3]
[368668773,1751286646763,-354.72,0.00020418,3]
[368668774,1751286646774,-460.0,0.00020428,2]
[368668775,1751286646786,-460.0,0.00020428,2]
[368668776,1751286646797,-460.0,0.00020428,2]
[368668777,1751286646807,-1367.79,0.00020428,2]
[368668778,1751286646818,-460.0,0.00020428,2]
[368668779,1751286646829,-460.0,0.00020428,2]
[368668780,1751286646840,-1557.53,0.00020428,2]
[368668781,1751286646850,-460.0,0.00020428,2]
[368668782,1751286646861,-460.0,0.00020428,2]
[368668783,1751286646872,-263.28257756,0.00020428,2]
[368668784,1751286646883,-271.75,0.00020428,2]
[368668785,1751286646895,-23797.18622877,0.00020429,2]
[368668786,1751286646906,-460.0,0.00020429,2]
[368668787,1751286646916,-460.0,0.00020429,2]
[368668788,1751286646928,-702.26,0.00020429,2]
[368668789,1751286646938,-610.59,0.00020429,2]
[368668790,1751286646949,-1839.25,0.00020429,2]
[368668791,1751286646962,-460.0,0.00020429,2]
[368668792,1751286646973,-609.73,0.00020429,2]
[368668793,1751286646985,-203.7589197,0.00020438,2]
[368668794,1751286646996,-168.0,0.00020474,2]
[368668795,1751286647008,-168.0,0.00020499,2]
[368668796,1751286647019,-803.0,0.000205,2]
[368668797,1751286647030,-203.7589197,0.00020521,2]
[368668798,1751286647042,-1000.0,0.00020527,2]
[368668799,1751286647053,-500.0,0.00020547,2]
[368668800,1751286647064,-500.0,0.00020547,2]
[368668801,1751286647075,-500.0,0.00020547,14]
[368668802,1751286647086,-1008.02982385,0.00020578,2]
[368668803,1751286647097,-151.0,0.00020589,2]
[368668804,1751286647108,-151.0,0.00020589,2]
[368668805,1751286647119,-4771.18398847,0.0002059,3]
[368668806,1751286647130,-151.0,0.0002059,2]
[368668807,1751286647141,-151.442658,0.0002059,2]
[368668808,1751286647152,-151.0,0.0002059,2]
[368668809,1751286647163,-299.119712,0.0002059,2]
[368668810,1751286647174,-5258.89,0.000206,2]
[368668811,1751286647185,-151.0,0.000206,4]
[368668812,1751286647196,-168.0,0.00020619,2]
[368668813,1751286647205,-203.7589197,0.0002063,2]
[368668814,1751286647215,-178.67757898,0.00020632,2]
[368668815,1751286647224,-508.111057,0.00020668,4]
[368668816,1751286647233,-190.935384,0.00020679,2]
[368668817,1751286647243,-3019.0,0.00020679,2]
[368668818,1751286647409,-460.0,0.00020683,2]
[368668819,1751286647421,-1010.22,0.00020683,2]
[368668820,1751286647431,-869.08,0.00020683,2]
[368668821,1751286647441,-1038.0,0.00020683,2]
[368668822,1751286647450,-1004.21,0.00020683,2]
[368668823,1751286647459,-467.89,0.00020683,2]
[368668824,1751286647469,-1242.93,0.00020683,2]
[368668825,1751286647478,-491.71,0.00020683,2]
[368668826,1751286647488,-466.69,0.00020683,2]
[368668827,1751286647498,-524.36,0.00020683,2]
[368668828,1751286647507,-460.0,0.00020683,2]
[368668829,1751286647517,-219.62878253,0.00020702,2]
[368668830,1751286647526,-460.0,0.00020702,2]
[368668831,1751286647535,-460.0,0.00020702,2]
[368668832,1751286647545,-1367.79,0.00020702,2]
[368668833,1751286647554,-460.0,0.00020702,2]
[368668834,1751286647564,-460.0,0.00020702,2]
[368668835,1751286647573,-1557.53,0.00020702,2]
[368668836,1751286647582,-460.0,0.00020702,2]
[368668837,1751286647592,-460.0,0.00020702,2]
[368668838,1751286647601,-460.0,0.00020703,2]
[368668839,1751286647611,-449.67,0.00020703,2]
[368668840,1751286647620,-702.26,0.00020703,2]
[368668841,1751286647629,-610.59,0.00020703,2]
[368668842,1751286647638,-1839.25,0.00020703,2]
[368668843,1751286647648,-460.0,0.00020703,2]
[368668844,1751286647657,-609.73,0.00020703,2]
[368668845,1751286647666,-203.7589197,0.00020712,2]
[368668846,1751286647675,-4771.18398847,0.00020762,3]
[368668847,1751286647684,-160.0,0.0002077,3]
[368668848,1751286647693,-847.41730813,0.0002077,3]
[368668849,1751286647702,-12569.13231816,0.0002077,3]
[368668850,1751286647712,-151.0,0.0002077,2]
[368668851,1751286647722,-151.0,0.0002077,2]
[368668852,1751286647731,-213.84631524,0.0002077,3]
[368668853,1751286647741,-2172.0,0.00020775,2]
[368668854,1751286647750,-201.0,0.0002078,2]
[368668855,1751286647759,-168.0,0.00020785,2]
[368668856,1751286647768,-151.0,0.00020816,2]
[368668857,1751286647778,-203.7589197,0.00020822,2]
[368668858,1751286647787,-168.0,0.0002085,2]
[368668859,1751286647796,-151.0,0.000209,4]
[368668860,1751286647806,-500.0,0.0002091,2]
[368668861,1751286647815,-500.0,0.0002091,2]
[368668862,1751286647825,-501.02285278,0.0002091,2]
[368668863,1751286647834,-4012.70700666,0.00020916,2]
[368668864,1751286647843,-168.0,0.00020921,2]
[368668865,1751286647852,-203.7589197,0.00020932,2]
[368668866,1751286647862,-4771.18398847,0.00020934,4]
[368668867,1751286647871,-12500.0,0.00020935,2]
[368668868,1751286647880,-2200.0,0.00020947,2]
[368668869,1751286647890,-151.0,0.00020953,4]
[368668870,1751286647899,-460.0,0.00020957,2]
[368668871,1751286647909,-1010.22,0.00020957,2]
[368668872,1751286647918,-869.08,0.00020957,2]
[368668873,1751286647927,-1038.0,0.00020957,2]
[368668874,1751286647937,-1004.21,0.00020957,2]
[368668875,1751286647947,-467.89,0.00020957,2]
[368668876,1751286647956,-1242.93,0.00020957,2]
[368668877,1751286647965,-491.71,0.00020957,2]
[368668878,1751286647976,-466.69,0.00020957,2]
[368668879,1751286647985,-524.36,0.00020957,2]
[368668880,1751286647995,-563.16531096,0.00020957,2]
[368668881,1751286648004,-460.0,0.00020976,2]
[368668882,1751286648014,-256.0153056,0.00020976,2]
[368668883,1751286648024,-1367.79,0.00020976,2]
[368668884,1751286648034,-460.0,0.00020976,2]
[368668885,1751286648044,-460.0,0.00020976,2]
[368668886,1751286648054,-1557.53,0.00020976,2]
[368668887,1751286648063,-460.0,0.00020976,2]
[368668888,1751286648073,-460.0,0.00020976,2]
[368668889,1751286648082,-460.0,0.00020977,2]
[368668890,1751286648092,-702.26,0.00020977,2]
[368668891,1751286648102,-610.59,0.00020977,2]
[368668892,1751286648111,-1839.25,0.00020977,2]
[368668893,1751286648120,-571.53866265,0.00020977,2]
[368668894,1751286648130,-609.73,0.00020977,2]
[368668895,1751286648140,-585.25589383,0.0002098,2]
[368668896,1751286648150,-36690.47299703,0.00021,2]
[368668897,1751286648159,-3000.0,0.00021,2]
[368668898,1751286648169,-151.0,0.00021,3]
[368668899,1751286648178,-5429.20494266,0.00021,2]
[368668900,1751286648187,-150.0,0.00021,5]
[368668901,1751286648197,-151.0,0.00021,4]
[368668902,1751286648206,-150.999999,0.00021,2]
[368668903,1751286648215,-151.0,0.00021,2]
[368668904,1751286648224,-151.0,0.00021,2]
[368668905,1751286648233,-151.0,0.00021,2]
[368668906,1751286648243,-283.29874,0.00021,2]
[368668907,1751286648253,-15097.10514394,0.00021,2]
[368668908,1751286648678,-37.25658176,0.00018492,2]
[368668909,1751286648844,-422.74341824,0.00018492,2]
[368668910,1751286648855,-460.0,0.00018766,2]
[368668911,1751286648865,-500.0,0.00018799,2]
[368668912,1751286648875,-500.0,0.00018799,2]
[368668913,1751286648884,-500.0,0.00018799,2]
[368668914,1751286648894,-500.0,0.00018799,2]
[368668915,1751286648904,-500.0,0.00018799,2]
[368668916,1751286648913,-500.0,0.00018799,2]
[368668917,1751286648922,-157.8858847,0.00018799,2]
[368668918,1751286648932,-500.0,0.00018799,2]
[368668919,1751286648941,-500.0,0.00018799,2]
[368668920,1751286648950,-500.0,0.00018799,2]
[368668921,1751286648960,-500.0,0.00018799,2]
[368668922,1751286648970,-310.99158786,0.00018799,2]
[368668923,1751286648982,-189.00841214,0.00018799,2]
[368668924,1751286648991,-500.0,0.00018799,2]
[368668925,1751286649001,-500.0,0.00018799,2]
[368668926,1751286649011,-500.0,0.00018799,2]
[368668927,1751286649020,-500.0,0.00018799,2]
[368668928,1751286649030,-500.0,0.00018799,2]
[368668929,1751286649039,-310.17262405,0.00018799,2]
[368668930,1751286649049,-500.0,0.00018799,2]
[368668931,1751286649058,-500.0,0.00018799,2]
[368668932,1751286649068,-151.0,0.00019058,2]
[368668933,1751286649078,-460.0,0.00019332,2]
[368668934,1751286649088,-460.0,0.00019332,2]
[368668935,1751286649098,-460.0,0.00019606,2]
[368668936,1751286649107,-460.0,0.00019606,2]
[368668937,1751286649117,-460.0,0.0001988,2]
[368668938,1751286649127,-460.0,0.0001988,2]
[368668939,1751286649136,-460.0,0.00020154,2]
[368668940,1751286649146,-460.0,0.00020428,2]
[368668941,1751286649155,-460.0,0.00020702,2]
[368668942,1751286649165,-460.0,0.00020976,2]
[368668943,1751286649174,-15817.84434482,0.00021,2]
[368668944,1751286649186,-14735.60739672,0.00021,2]
[368668945,1751286649195,-3000.0,0.0002101,2]
[368668946,1751286649205,-168.0,0.00021011,2]
[368668947,1751286649214,-203.7589197,0.00021014,2]
[368668948,1751286649224,-3000.0,0.0002102,2]
[368668949,1751286649235,-215.0738,0.00021027,2]
[368668950,1751286649245,-3000.0,0.0002103,2]
[368668951,1751286649256,-811.7295076,0.0002104,2]
[368668952,1751286649292,-2188.2704924,0.0002104,2]
[368668953,1751286649303,-800.0,0.00021046,2]
[368668954,1751286649314,-3000.0,0.0002105,2]
[368668955,1751286649324,-199.50192998,0.00021057,2]
[368668956,1751286649333,-3000.0,0.0002106,2]
[368668957,1751286649342,-2162.63081691,0.0002107,2]
[368669025,1751287249607,24900.0,0.00017491,2]
[368669033,1751287326382,248.158264,0.00013699,2]
[368669047,1751287504111,500.0,0.00018066,2]
[368669048,1751287508731,500.0,0.00018038,2]
[368669049,1751287513378,240.02486998,0.00018038,2]
[368669090,1751287793592,-288.1227444,0.00018388,2]
[368669091,1751287793616,-1200.0,0.00018486,2]
[368669092,1751287793640,-300.0,0.00018486,2]
[368669093,1751287793666,-300.0,0.00018487,2]
[368669094,1751287793689,-300.0,0.00018487,2]
[368669095,1751287793714,-300.0,0.00018487,2]
[368669096,1751287793741,-1200.0,0.00018487,2]
[368669097,1751287793765,-460.0,0.00018487,2]
[368669098,1751287793790,-460.0,0.00018487,2]
[368669099,1751287793814,-460.0,0.00018487,2]
[368669100,1751287793838,-460.0,0.00018487,2]
[368669101,1751287793864,-460.0,0.00018487,2]
[368669102,1751287793890,-808.13,0.00018487,2]
[368669103,1751287793915,-160.0,0.00018488,2]
[368669104,1751287793939,-460.0,0.00018488,2]
[368669105,1751287793964,-290.83881185,0.00018488,2]
[368669106,1751287793989,-522.79887585,0.00018488,2]
[368669107,1751287794012,-460.0,0.00018488,2]
[368669108,1751287794036,-460.0,0.00018488,2]
[368669109,1751287794060,-460.0,0.00018488,2]
[368669110,1751287794085,-190.1095679,0.00018488,2]
[368669118,1751287832796,-300.0,0.00018487,2]
[368669119,1751287832806,-300.0,0.00018487,2]
[368669120,1751287832816,-1200.0,0.00018487,2]
[368669121,1751287832825,-460.0,0.00018487,2]
[368669122,1751287832835,-460.0,0.00018487,2]
[368669123,1751287832845,-460.0,0.00018487,2]
[368669124,1751287832855,-460.0,0.00018487,2]
[368669125,1751287832864,-269.8904321,0.00018488,2]
[368669126,1751287832874,-500.0,0.00018488,2]
[368669127,1751287832883,-500.0,0.00018488,2]
[368669128,1751287832893,-500.0,0.00018488,2]
[368669129,1751287832902,-500.0,0.00018488,2]
[368669130,1751287832911,-500.0,0.00018488,2]
[368669131,1751287832920,-500.0,0.00018488,2]
[368669132,1751287832930,-500.0,0.00018488,2]
[368669133,1751287832939,-500.0,0.00018488,2]
[368669134,1751287832949,-382.9904994,0.00018488,2]
[368669135,1751287832958,-500.0,0.00018488,2]
[368669136,1751287832967,-131.46899871,0.00018488,2]
[368669137,1751287832984,-368.53100129,0.00018488,2]
[368669138,1751287832994,-500.0,0.00018488,2]
[368669139,1751287833003,-500.0,0.00018488,2]
[368669140,1751287833013,-500.0,0.00018488,2]
[368669141,1751287833021,-639.35058788,0.00018488,2]
[368669142,1751287833033,-500.0,0.00018488,2]
[368669143,1751287833043,-500.0,0.00018488,2]
[368669144,1751287833053,-500.0,0.00018488,2]
[368669145,1751287833063,-500.0,0.00018488,2]
[368669146,1751287833073,-500.0,0.00018488,2]
[368669147,1751287833083,-500.0,0.00018488,2]
[368669148,1751287833093,-500.0,0.00018488,2]
[368669149,1751287833103,-500.0,0.00018488,2]
[368669150,1751287833113,-500.0,0.00018488,2]
[368669151,1751287833122,-500.0,0.00018488,2]
[368669152,1751287833132,-500.0,0.00018488,2]
[368669153,1751287833142,-500.0,0.00018488,2]
[368669154,1751287833152,-500.0,0.00018488,2]
[368669156,1751287833161,-500.0,0.00018488,2]
[368669157,1751287833171,-540.61571861,0.00018488,2]
[368669159,1751287833181,-500.0,0.00018488,2]
[368669162,1751287833191,-500.0,0.00018488,2]
[368669163,1751287833201,-500.0,0.00018488,2]
[368669165,1751287833211,-500.0,0.00018488,2]
[368669168,1751287833221,-322.00269219,0.00018488,2]
[368669194,1751287838651,-460.0,0.00018487,2]
[368669196,1751287838661,-154.32826156,0.00018487,2]
[368669198,1751287838759,-305.67173844,0.00018487,2]
[368669199,1751287838770,-460.0,0.00018487,2]
[368669200,1751287838780,-469.88910191,0.00018487,2]
[368669201,1751287838790,-460.0,0.00018487,2]
[368669202,1751287838801,-177.99730781,0.00018488,2]
[368669203,1751287838811,-500.0,0.00018488,2]
[368669204,1751287838821,-500.0,0.00018488,2]
[368669205,1751287838830,-500.0,0.00018488,2]
[368669206,1751287838841,-500.0,0.00018488,2]
[368669207,1751287838850,-500.0,0.00018488,2]
[368669208,1751287838861,-500.0,0.00018488,2]
[368669209,1751287838870,-500.0,0.00018488,2]
[368669210,1751287838879,-500.0,0.00018488,2]
[368669211,1751287838889,-500.0,0.00018488,2]
[368669212,1751287838898,-500.0,0.00018488,2]
[368669213,1751287838907,-500.0,0.00018488,2]
[368669214,1751287838916,-500.0,0.00018488,2]
[368669215,1751287838927,-500.0,0.00018488,2]
[368669216,1751287838936,-500.0,0.00018488,2]
[368669217,1751287838946,-500.0,0.00018488,2]
[368669218,1751287838955,-500.0,0.00018488,2]
[368669219,1751287838966,-500.0,0.00018488,2]
[368669220,1751287838976,-500.0,0.00018488,2]
[368669221,1751287838986,-500.0,0.00018488,2]
[368669222,1751287838995,-500.0,0.00018488,2]
[368669223,1751287839005,-500.0,0.00018488,2]
[368669224,1751287839015,-500.0,0.00018488,2]
[368669225,1751287839024,-500.0,0.00018488,2]
[368669226,1751287839034,-500.0,0.00018488,2]
[368669227,1751287839044,-500.0,0.00018488,2]
[368669228,1751287839053,-500.0,0.00018488,2]
[368669229,1751287839064,-500.0,0.00018488,2]
[368669230,1751287839073,-500.0,0.00018488,2]
[368669231,1751287839085,-500.0,0.00018488,2]
[368669232,1751287839094,-500.0,0.00018488,2]
[368669233,1751287839104,-477.12189403,0.00018488,2]
[368669234,1751287839115,-1432.11,0.00018488,2]
[368669235,1751287839124,-460.0,0.00018488,2]
[368669236,1751287839134,-460.0,0.00018488,2]
[368669237,1751287839146,-460.0,0.00018488,2]
[368669238,1751287839155,-460.0,0.00018488,2]
[368669239,1751287839165,-460.0,0.00018488,2]
[368669240,1751287839174,-481.37040641,0.00018488,2]
[368669241,1751287839184,-1392.04,0.00018488,2]
[368669242,1751287839193,-460.0,0.00018488,2]
[368669243,1751287839203,-460.0,0.00018488,2]
[368669244,1751287839212,-460.0,0.00018488,2]
[368669245,1751287839222,-460.0,0.00018488,2]
[368669246,1751287839232,-460.0,0.00018488,2]
[368669247,1751287839241,-460.0,0.00018488,2]
[368669248,1751287839250,-460.0,0.00018488,2]
[368669249,1751287839260,-460.0,0.00018488,2]
[368669250,1751287839269,-460.0,0.00018488,2]
[368669251,1751287839279,-460.0,0.00018488,2]
[368669252,1751287839289,-460.0,0.00018488,2]
[368669253,1751287839299,-1416.44,0.00018488,2]
[368669254,1751287839308,-1460.61,0.00018488,2]
[368669255,1751287839317,-460.0,0.00018488,2]
[368669256,1751287839328,-1749.53,0.00018488,2]
[368669257,1751287839338,-460.0,0.00018488,2]
[368669258,1751287839348,-460.0,0.00018488,2]
[368669259,1751287839535,-460.0,0.00018488,2]
[368669260,1751287839545,-460.0,0.00018488,2]
[368669261,1751287839555,-460.0,0.00018488,2]
[368669262,1751287839565,-460.0,0.00018488,2]
[368669263,1751287839574,-460.0,0.00018488,2]
[368669264,1751287839584,-784.07,0.00018488,2]
[368669265,1751287839593,-263.14941449,0.00018488,2]
[368669266,1751287839603,-460.0,0.00018488,2]
[368669267,1751287839612,-462.12815698,0.00018488,2]
[368669268,1751287839622,-460.0,0.00018488,2]
[368669269,1751287839631,-460.0,0.00018488,2]
[368669270,1751287839640,-460.0,0.00018489,2]
[368669271,1751287839650,-460.0,0.00018489,2]
[368669272,1751287839659,-430.0,0.00018489,2]
[368669273,1751287839668,-460.0,0.00018489,2]
[368669274,1751287839681,-460.0,0.00018489,2]
[368669275,1751287839690,-289.98155882,0.00018489,2]
[368669276,1751287839699,-460.0,0.00018489,2]
[368669277,1751287839708,-460.0,0.00018489,2]
[368669278,1751287839717,-460.0,0.00018489,2]
[368669279,1751287839727,-460.0,0.00018489,2]
[368669280,1751287839736,-460.0,0.00018489,2]
[368669281,1751287839745,-460.0,0.00018489,2]
[368669282,1751287839754,-460.0,0.00018489,2]
[368669283,1751287839764,-460.0,0.00018489,2]
[368669284,1751287839773,-460.0,0.00018489,2]
[368669285,1751287839784,-460.0,0.00018489,2]
[368669286,1751287839794,-460.0,0.00018489,2]
[368669287,1751287839803,-460.0,0.00018489,2]
[368669288,1751287839812,-460.0,0.00018489,2]
[368669289,1751287839822,-460.9052994,0.00018489,2]
[368669290,1751287839831,-460.0,0.00018489,2]
[368669291,1751287839841,-460.0,0.00018489,2]
[368669292,1751287839850,-460.0,0.00018489,2]
[368669293,1751287839859,-907.07,0.00018489,2]
[368669294,1751287839869,-460.0,0.00018489,2]
[368669295,1751287839878,-460.0,0.00018489,2]
[368669296,1751287839887,-460.0,0.00018489,2]
[368669297,1751287839896,-460.0,0.00018489,2]
[368669298,1751287839905,-460.0,0.00018489,2]
[368669299,1751287839914,-460.0,0.00018489,2]
[368669300,1751287839924,-460.0,0.00018489,2]
[368669301,1751287839933,-460.0,0.00018489,2]
[368669302,1751287839942,-460.0,0.00018489,2]
[368669303,1751287839952,-460.0,0.00018489,2]
[368669304,1751287839961,-460.0,0.00018489,2]
[368669305,1751287839970,-460.0,0.00018489,2]
[368669306,1751287839980,-347.76569123,0.00018489,2]
[368669307,1751287839989,-460.0,0.00018489,2]
[368669308,1751287839998,-460.0,0.00018489,2]
[368669309,1751287840007,-460.0,0.00018489,2]
[368669310,1751287840017,-460.0,0.00018489,2]
[368669311,1751287840026,-460.0,0.00018489,2]
[368669312,1751287840035,-460.0,0.00018489,2]
[368669313,1751287840045,-460.0,0.00018489,2]
[368669314,1751287840054,-1850.88,0.00018489,2]
[368669315,1751287840064,-410.0,0.00018489,2]
[368669316,1751287840073,-460.0,0.00018489,2]
[368669317,1751287840082,-460.0,0.00018489,2]
[368669318,1751287840092,-460.0,0.00018489,2]
[368669319,1751287840101,-500.0,0.00018489,2]
[368669320,1751287840111,-151.0,0.00018489,2]
[368669321,1751287840120,-151.0,0.00018489,2]
[368669322,1751287840129,-500.0,0.00018489,2]
[368669323,1751287840139,-460.0,0.00018489,2]
[368669324,1751287840148,-460.0,0.00018489,2]
[368669325,1751287840158,-460.0,0.00018489,2]
[368669326,1751287840168,-460.0,0.00018489,2]
[368669327,1751287840178,-460.0,0.00018489,2]
[368669328,1751287840187,-460.0,0.00018489,2]
[368669329,1751287840197,-460.0,0.00018489,2]
[368669330,1751287840207,-460.48427629,0.00018489,2]
[368669331,1751287840216,-460.0,0.00018489,2]
[368669332,1751287840225,-460.0,0.00018489,2]
[368669333,1751287840235,-460.0,0.00018489,2]
[368669334,1751287840244,-460.0,0.00018489,2]
[368669335,1751287840254,-460.0,0.00018489,2]
[368669336,1751287840264,-460.0,0.00018489,2]
[368669337,1751287840273,-490.16,0.00018489,2]
[368669338,1751287840287,-460.0,0.00018489,2]
[368669339,1751287840297,-460.0,0.0001849,2]